[Event "5th Sharjah Masters 2022"]
[Site "Sharjah"]
[Date "2022.05.25"]
[Round "5.13"]
[White "Puranik, Abhimanyu"]
[Black "Moussard, Jules"]
[Result "1/2-1/2"]
[ECO "A13"]
[WhiteElo "2608"]
[BlackElo "2651"]
[Annotator "TA"]
[PlyCount "91"]
[EventDate "2022.05.21"]
[EventType "swiss"]
[EventCountry "UAE"]
[SourceTitle "playchess.com"]
[Source "ChessBase"]
[SourceQuality "1"]
[TimeControl "5400+30"]

{[%evp 9,91,11,7,0,13,0,0,6,12,0,10,0,0,0,-3,-6,-10,-17,0,-4,-4,0,0,0,0,0,0,-11,-24,-17,-16,-51,-70,-82,-74,-31,-29,-86,-28,-35,-26,-49,-25,-39,-34,-56,0,0,0,0,0,-135,-43,-76,-72,-93,-64,-83,-63,-223,-239,-222,-7,-22,0,0,31,32,33,37,27,31,31,0,0,0,0,0,0,0,0,0,0,0]} 1. Nf3 {[%emt 0:00:09]} Nf6 {[%emt 0:00:30]} 2. c4 {[%emt 0:00:13]} e6 {[%emt 0:02:44]} 3. e3 {[%emt 0:00:19]} d5 {[%emt 0:01:32]} 4. b3 {[%emt 0:00:07]} Bd6 {[%emt 0:01:44]} 5. Bb2 {[%emt 0:00:09]} O-O {[%emt 0:00:35]} 6. Nc3 {[%emt 0:06:06] A13: English Opening: 1...e6.} Re8 {[%emt 0:01:01]} 7. d4 {[%emt 0:09:09]} b6 {[%emt 0:02:06]} 8. Bd3 {[%emt 0:00:52]} Bb7 {[%emt 0:00:13]} 9. O-O {[%emt 0:01:23]} Nbd7 {[%emt 0:00:17]} 10. Rc1 {[%emt 0:01:24]} a6 {[%emt 0:00:36]} 11. cxd5 {[%emt 0:01:45] has lost popularity (11.Qc2).} exd5 {[%emt 0:00:17]} 12. Ne2 {[%emt 0:00:16]} Ne4 {[%emt 0:04:56]} 13. Ng3 {[%emt 0:00:23]} Nxg3 {[%emt 0:08:20]} 14. hxg3 {[%emt 0:00:27] [#]} g6 $146 {[%emt 0:03:20]} ({Predecessor:} 14... Nf6 15. Rc2 Ne4 16. Qc1 Qe7 17. Ne5 f6 18. Bxe4 dxe4 19. Nc4 Rac8 20. a4 b5 21. axb5 {½-½ (21) Gelfand,B (2707)-Seirawan,Y (2631) Prague 2002}) 15. Qc2 {[%emt 0:03:36]} Rc8 {[%emt 0:02:19][%cal Ba8c8,Bc8c7,Bc7e7][%mdl 32]} 16. Qe2 {[%emt 0:01:29]} b5 {[%emt 0:05:38]} 17. a4 {[%emt 0:20:56]} c6 {[%emt 0:00:24]} 18. g4 {[%emt 0:00:45]} Nf6 {[%emt 0:19:54]} 19. Ne5 {[%emt 0:14:32]} Ne4 {[%emt 0:06:35]} 20. Bb1 {[%emt 0:04:10]} Rc7 {[%emt 0:07:45]} 21. g3 {[%emt 0:06:57]} f6 {[%emt 0:02:10]} 22. Nd3 {[%emt 0:00:30]} Rce7 {[%emt 0:02:24][%cal Oe4g3] ...Nxg3! is the strong threat.} 23. Nf4 {[%emt 0:06:43]} (23. Rfe1 $1 $11 {keeps the balance.}) 23... Ng5 {[%emt 0:00:36]} (23... f5 $17) 24. Kg2 {[%emt 0:00:51]} Qd7 {[%emt 0:00:04][%cal Oc6c5]} 25. Rh1 {[%emt 0:01:06]} c5 {[%emt 0:08:10]} 26. Rh6 {[%emt 0:04:59][%cal Of4g6]} (26. dxc5 $2 d4+ 27. Kh2 (27. e4 $2 Rxe4 28. Bxe4 Rxe4 $19) 27... Bxf4 28. gxf4 Bf3 $19) 26... Rg7 {[%emt 0:00:51]} 27. Rch1 $1 {[%emt 0:01:41][%cal Rf4g6]} Kf7 {[%emt 0:02:06]} (27... Nf7 $15 28. Bf5 Qe7 29. Nxg6 (29. Be6 c4 $17) 29... hxg6 30. Rxg6 Rxg6 31. Bxg6 Ng5 $1) 28. Nh3 {[%emt 0:03:35]} Nxh3 {[%emt 0:02:47]} 29. R1xh3 {[%emt 0:00:19]} Kg8 {[%emt 0:00:39]} 30. Qf3 {[%emt 0:02:42]} (30. axb5 $11 {remains equal.} c4 31. b6) 30... Re6 {[%emt 0:01:47]} (30... Bf8 $1 $17 31. axb5 (31. Qxf6 Re6 $17) 31... axb5) 31. axb5 {[%emt 0:01:52]} axb5 {[%emt 0:01:32]} 32. dxc5 {[%emt 0:00:45]} d4 $1 {[%emt 0:01:15]} 33. e4 {[%emt 0:00:03]} Bf8 {[%emt 0:02:46] And now ...Rge7 would win.} 34. Kh2 $2 {[%emt 0:02:42] [#]} (34. R6h4 $1 $15 d3 35. c6 (35. Qxd3 $2 Bxe4+ 36. Qxe4 Rxe4 $19) (35. Bxd3 Bxc5 36. Rh1 Rd6 $11) 35... Bxc6 36. Bxd3) 34... Rf7 $1 $19 {[%emt 0:03:32]} (34... Bxc5 35. b4 Bf8 36. Ba2 $16) 35. R6h4 {[%emt 0:00:47] [#]} b4 $2 {[%emt 0:01:55]} (35... Bxc5 36. b4 Bxb4 37. Qb3) (35... d3 $1 $19 36. Qxd3 (36. Bxd3 $2 Bxc5 37. Qe2 Bxf2 $19) 36... Qxd3 37. Bxd3 Bxc5 38. Bxb5 Ba6) 36. Bd3 $11 {[%emt 0:00:49]} Bxc5 {[%emt 0:00:25] Strongly threatening ...Ba6.} 37. Bc4 {[%emt 0:02:54]} Bxe4 {[%emt 0:00:36] [#]} 38. Rxh7 $1 {[%emt 0:00:28]} Rxh7 {[%emt 0:00:34]} (38... Bxf3 $2 {leads to mate.} 39. Rh8+ Kg7 40. R3h7#) 39. Qxe4 $1 {[%emt 0:00:07][%mdl 64] Pin, Double Attack} Rxh3+ {[%emt 0:00:06]} 40. Kxh3 {[%emt 0:00:03] Dancing on a razor blade.} Kf7 {[%emt 0:00:01][%cal Of7e7]} 41. Bxd4 {[%emt 0:02:21]} Bxd4 {[%emt 0:00:07] The position is equal.} 42. Bxe6+ {[%emt 0:00:03]} Qxe6 {[%emt 0:00:02]} 43. Qxd4 {[%emt 0:00:01]} Qxb3 {[%emt 0:00:10]} 44. Qd7+ {[%emt 0:00:07]} Kf8 {[%emt 0:00:19]} 45. Qd8+ {[%emt 0:00:03]} Kf7 {[%emt 0:00:05]} 46. Qd7+ {[%emt 0:00:04] Weighted Error Value: White=0.17 (very precise) /Black=0.16 (very precise)} 1/2-1/2

[Event "5th Sharjah Masters 2022"]
[Site "Sharjah"]
[Date "2022.05.25"]
[Round "5.14"]
[White "Sargsyan, Shant"]
[Black "Hakobyan, Aram"]
[Result "1/2-1/2"]
[ECO "D35"]
[WhiteElo "2641"]
[BlackElo "2615"]
[Annotator "TA"]
[PlyCount "45"]
[EventDate "2022.05.21"]
[EventType "swiss"]
[EventCountry "UAE"]
[SourceTitle "playchess.com"]
[Source "ChessBase"]
[SourceQuality "1"]
[TimeControl "5400+30"]

{[%evp 9,45,12,34,31,34,25,28,14,20,18,18,9,44,25,51,42,41,39,58,64,42,4,0,0,0,-102,-83,-87,8,-22,0,-62,-66,-72,-67,-70,-6,-106]} 1. d4 {[%emt 0:01:00]} d5 {[%emt 0:00:09]} 2. c4 {[%emt 0:00:32]} e6 {[%emt 0:00:06]} 3. Nc3 {[%emt 0:00:17]} Nf6 {[%emt 0:00:17]} 4. cxd5 {[%emt 0:00:27]} exd5 {[%emt 0:00:08]} 5. Bg5 {[%emt 0:00:18]} Be6 {[%emt 0:00:34]} 6. e3 {[%emt 0:01:23] D35: Queen's Gambit Declined: Exchange Variation.} Nbd7 {[%emt 0:00:33] 6...Bd6 is vanishing.} 7. Bd3 {[%emt 0:01:10]} c6 {[%emt 0:00:06] [#]} 8. Bf4 $146 {[%emt 0:03:34] White has an edge.} ({Predecessor:} 8. f4 h6 9. Bh4 g5 10. fxg5 Ng4 11. Nf3 Be7 12. Qe2 hxg5 13. Bg3 Qa5 14. O-O {1-0 (27) Andreikin,D (2726)-Bartel,M (2638) Chess.com INT 2020}) 8... Be7 {[%emt 0:01:55]} 9. h3 {[%emt 0:00:59]} O-O {[%emt 0:00:47]} 10. Nf3 {[%emt 0:00:30]} Ne8 {[%emt 0:06:35]} 11. Qc2 {[%emt 0:00:52]} Kh8 {[%emt 0:02:25]} 12. g4 {[%emt 0:04:07]} ({Of course not} 12. Bxh7 g6 13. Bxg6 fxg6 14. Qxg6 Bf5 15. Qh6+ Kg8 $17) 12... Nd6 {[%emt 0:14:52]} 13. Rg1 {[%emt 0:10:46]} g6 {[%emt 0:18:43]} 14. h4 {[%emt 0:04:25]} c5 {[%emt 0:05:48]} 15. dxc5 {[%emt 0:07:33]} (15. h5 $5 {[%cal Rh5g6]} c4 16. Be2 $14) 15... Nxc5 {[%emt 0:00:19]} 16. O-O-O {[%emt 0:07:29]} Rc8 {[%emt 0:02:02]} 17. h5 {[%emt 0:02:44]} (17. Kb1 $11) 17... Nxd3+ $17 {[%emt 0:12:19]} 18. Rxd3 {[%emt 0:09:12]} g5 {[%emt 0:03:31]} (18... b5 $17 {aiming for ...b4.} 19. hxg6 fxg6) 19. Be5+ {[%emt 0:03:40]} (19. Bxd6 $5 Qxd6 20. Nd4 $11) 19... Kg8 {[%emt 0:00:02] Threatens to win with ...b5.} (19... Bf6 $5 {[%cal Rf6e5]} 20. Bd4 b5 $15) 20. Nd4 {[%emt 0:03:39] Inhibits b5.} (20. Bxd6 $11 Qxd6 21. Kb1) 20... Nc4 $15 {[%emt 0:01:13]} 21. Bh2 {[%emt 0:00:29] [#]} Bf6 $1 {[%emt 0:01:19]} 22. Kb1 {[%emt 0:02:24]} b5 {[%emt 0:05:26]} ({Black should try} 22... a6 $15) 23. Qb3 {[%emt 0:11:53] Weighted Error Value: White=0.22 (precise) /Black=0.19 (very precise)} (23. Ndxb5 $11 {keeps the balance.} Qb6 24. Qe2 (24. Nxd5 $2 Bxd5 25. Rxd5 Na3+ 26. Nxa3 Rxc2 $19)) 1/2-1/2

[Event "5th Sharjah Masters 2022"]
[Site "Sharjah"]
[Date "2022.05.25"]
[Round "5.15"]
[White "Van Foreest, Lucas"]
[Black "Abasov, Nijat"]
[Result "1/2-1/2"]
[ECO "E36"]
[WhiteElo "2572"]
[BlackElo "2635"]
[Annotator "TA"]
[PlyCount "146"]
[EventDate "2022.05.21"]
[EventType "swiss"]
[EventCountry "UAE"]
[SourceTitle "playchess.com"]
[Source "ChessBase"]
[SourceQuality "1"]
[TimeControl "5400+30"]

{[%evp 11,146,0,15,0,21,24,19,16,11,6,6,-6,12,18,16,9,20,15,22,30,22,22,17,21,49,12,21,15,130,133,154,166,240,236,223,242,236,230,223,210,210,215,233,206,319,297,288,213,213,218,193,187,356,354,415,408,392,359,359,356,319,338,215,19,18,16,32,28,28,28,28,28,38,38,38,45,52,52,52,52,75,22,22,22,22,22,22,22,22,22,22,22,22,22,22,0,22,22,22,22,22,22,22,22,22,22,22,22,22,22,22,22,22,0,22,22,22,22,22,22,22,0,22,22,22,22,22,0,0,0,0,0,0,0,0,0,0]} 1. d4 {[%emt 0:00:16]} Nf6 {[%emt 0:00:46]} 2. c4 {[%emt 0:00:12]} e6 {[%emt 0:00:08]} 3. Nc3 {[%emt 0:00:09]} Bb4 {[%emt 0:00:07]} 4. Qc2 {[%emt 0:00:04]} O-O {[%emt 0:00:23]} 5. a3 {[%emt 0:00:04]} Bxc3+ {[%emt 0:00:17]} 6. Qxc3 {[%emt 0:00:04]} d5 $1 {[%emt 0:01:10][%mdl 4] outshines the older 6...b6.} 7. e3 {[%emt 0:00:09] E36: Nimzo-Indian: Classical: 4...d5 5 a3.} dxc4 {[%emt 0:06:52]} 8. Bxc4 {[%emt 0:01:32]} b6 {[%emt 0:00:39]} 9. Nf3 {[%emt 0:00:44]} Bb7 {[%emt 0:01:05]} 10. O-O {[%emt 0:00:24]} Nbd7 {[%emt 0:01:47]} 11. b3 {[%emt 0:07:28]} Rc8 {[%emt 0:05:18]} 12. Bb2 {[%emt 0:00:17]} c5 {[%emt 0:01:10]} 13. Rfd1 {[%emt 0:00:13][%cal Od4d5,Bf1d1,Bd1d5,Bd5g5,Bg5g3][%mdl 32] [#]} Qe7 $146 {[%emt 0:07:33]} ({Predecessor:} 13... Bd5 14. Bxd5 Nxd5 15. Qd3 Qe7 16. Rac1 Rfd8 17. h3 h6 18. Qe2 Qf8 19. Rc4 cxd4 20. Rcxd4 {½-½ (71) Koneru,H (2575)-Gunina,V (2520) Hancheng 2016}) 14. d5 {[%emt 0:19:34]} exd5 {[%emt 0:00:29] [#]} 15. Bxd5 {[%emt 0:00:06]} Bxd5 {[%emt 0:00:34] [#]} 16. Rxd5 {[%emt 0:00:12][%cal Of3h4]} Rfd8 {[%emt 0:00:18] [#]} 17. Nh4 $1 {[%emt 0:00:42][%cal Bf3h4,Bh4f5,Bf5h6][%mdl 32]} Qf8 {[%emt 0:08:51]} (17... Qe4 18. Nf5) 18. Rg5 {[%emt 0:01:49]} h6 {[%emt 0:04:13]} 19. Rg3 {[%emt 0:00:24]} Nh5 {[%emt 0:01:25]} (19... c4 $11) 20. Rh3 $1 $16 {[%emt 0:05:55] White is more active.} Ndf6 {[%emt 0:07:34]} 21. Nf5 {[%emt 0:00:12]} Rd5 {[%emt 0:00:45] [#]} (21... Rc6 $142) 22. Nxh6+ $1 $18 {[%emt 0:01:11][%mdl 512]} gxh6 {[%emt 0:01:34] [#]} (22... Kh7 $2 23. e4 Nxe4 24. Qc4 $18) 23. Rxh5 $1 {[%emt 0:00:41][%mdl 576] Remove Defender} Rxh5 {[%emt 0:00:10]} 24. Qxf6 {[%emt 0:00:03][%csl Gb2][%cal Rf6h8]} Kh7 {[%emt 0:00:13] Inhibits Qh8+.} 25. Qf3 {[%emt 0:21:48][%mdl 1024] White has strong compensation.} Rg5 {[%emt 0:00:14]} 26. Rd1 {[%emt 0:00:07]} Rg6 {[%emt 0:10:51]} 27. h4 {[%emt 0:05:39][%cal Bh2h4,Bh4h5][%mdl 32] Hoping for Rd7.} Qe8 {[%emt 0:29:54]} (27... Re8 $142 28. h5 Rge6) 28. h5 {[%emt 0:00:50]} Rg5 {[%emt 0:00:15]} 29. Bf6 {[%emt 0:01:31]} Qe6 {[%emt 0:00:09]} 30. Bxg5 {[%emt 0:00:31]} hxg5 {[%emt 0:00:06][%mdl 4096] Endgame KQR-KQR} 31. Rd5 {[%emt 0:00:52]} f6 {[%emt 0:01:49]} (31... g4 {is a better defense.} 32. Qd1 c4) 32. Qd1 {[%emt 0:00:19] Black must now prevent Qd3+.} Qe4 {[%emt 0:02:31]} 33. Rd7+ {[%emt 0:00:04]} Kh6 {[%emt 0:00:06]} 34. Qd6 {[%emt 0:00:21]} Qb1+ {[%emt 0:01:23]} 35. Kh2 {[%emt 0:00:04]} Qf5 {[%emt 0:00:10]} 36. Kg3 {[%emt 0:03:22]} (36. Rxa7 Qxf2 37. Rf7 (37. Qd7 Qh4+ 38. Kg1 Qe1+ 39. Kh2 Qh4+ 40. Kg1 Qe1+ 41. Kh2 Qh4+ $11) 37... Qh4+ 38. Kg1 Qe1+ 39. Kh2 Qh4+ 40. Kg1 Qe1+ 41. Kh2 Qh4+ $11) 36... Kxh5 {[%emt 0:01:08] [#]} 37. Qd1+ $2 {[%emt 0:00:07]} ({Don't play} 37. Rxa7 $6 c4 $16) ({Better is} 37. Qe7 $1 $18 {[%cal Od7d5] Rd5! is the strong threat.} Rh8 38. Qf7+ (38. Rxa7 $2 Qg4+ 39. Kh2 Kg6+ 40. Qh7+ Rxh7+ $19) 38... Qg6 39. Qd5 (39. Rxa7 Qxf7 40. Rxf7 Kg6 $16)) 37... Kg6 $11 {[%emt 0:00:08]} 38. Rxa7 {[%emt 0:07:11]} c4 {[%emt 0:01:34]} 39. Re7 {[%emt 0:06:56] Threatens to win with Qh1.} Qd3 $1 {[%emt 0:01:36]} 40. Rd7 {[%emt 0:00:37] Dancing on a razor blade.} Qxd1 {[%emt 0:00:14]} 41. Rxd1 {[%emt 0:00:01]} cxb3 {[%emt 0:01:27] KR-KR} 42. Rd3 {[%emt 0:00:19]} b2 {[%emt 0:00:04]} 43. Rb3 $1 {[%emt 0:00:01][%csl LRb2,LRb6]} Rc3 {[%emt 0:00:13]} 44. Rxb2 {[%emt 0:00:02]} Rxa3 {[%emt 0:00:10]} 45. Rxb6 {[%emt 0:00:02]} Rc3 {[%emt 0:00:50]} 46. Kh2 {[%emt 0:00:18]} (46. Kf3 $16) 46... Rc2 {[%emt 0:00:22] The position is equal.} 47. f3 {[%emt 0:00:10]} Re2 {[%emt 0:00:11]} 48. e4 {[%emt 0:00:15]} g4 {[%emt 0:00:28]} 49. Kg3 {[%emt 0:00:01]} gxf3 {[%emt 0:00:07]} 50. gxf3 {[%emt 0:00:01]} Kf7 {[%emt 0:02:04]} 51. Kf4 {[%emt 0:01:26]} Ra2 {[%emt 0:00:16]} 52. Rc6 {[%emt 0:01:30]} Ra3 {[%emt 0:01:06]} 53. Kg4 {[%emt 0:00:13]} Ra4 {[%emt 0:00:44]} 54. Rd6 {[%emt 0:01:55]} Ke7 {[%emt 0:00:38]} 55. Rd5 {[%emt 0:00:34]} Ke6 {[%emt 0:00:41]} 56. Kh5 {[%emt 0:00:31]} Ra1 {[%emt 0:00:45]} 57. Rb5 {[%emt 0:00:36]} Rg1 {[%emt 0:01:03]} 58. f4 {[%emt 0:00:41]} Kf7 {[%emt 0:00:37]} 59. Rb7+ {[%emt 0:00:59]} Kf8 {[%emt 0:00:07]} 60. Ra7 {[%emt 0:00:33]} Rg2 {[%emt 0:00:11]} 61. Kh4 {[%emt 0:00:53]} Rg1 {[%emt 0:00:46]} 62. Kh3 {[%emt 0:00:11]} Re1 {[%emt 0:00:18]} (62... f5 $5) 63. Ra4 {[%emt 0:00:08]} Rg1 {[%emt 0:00:07]} 64. Kh4 {[%emt 0:02:06]} Kf7 {[%emt 0:00:32]} 65. Kh5 {[%emt 0:00:36]} Kf8 {[%emt 0:00:54]} 66. Ra7 {[%emt 0:01:19]} Rg2 {[%emt 0:00:15]} 67. Ra1 {[%emt 0:00:32]} Kf7 {[%emt 0:00:39]} 68. Re1 {[%emt 0:00:08]} Ke6 {[%emt 0:00:35]} 69. Kh4 {[%emt 0:00:52]} f5 {[%emt 0:00:29]} 70. Kh3 {[%emt 0:00:03]} Rg4 {[%emt 0:01:02]} 71. Rf1 {[%emt 0:00:02]} Rg8 {[%emt 0:00:11]} 72. e5 {[%emt 0:00:03]} Rg4 {[%emt 0:00:06]} 73. Rf2 {[%emt 0:00:28]} Ke7 {[%emt 0:00:08] Blacks defense is rewarded with a draw.  Weighted Error Value: White=0.14 (very precise) /Black=0.18 (very precise)} 1/2-1/2

[Event "5th Sharjah Masters 2022"]
[Site "Sharjah"]
[Date "2022.05.25"]
[Round "5.16"]
[White "Azarov, Sergei"]
[Black "Idani, Pouya"]
[Result "0-1"]
[ECO "B95"]
[WhiteElo "2588"]
[BlackElo "2635"]
[Annotator "TA"]
[PlyCount "56"]
[EventDate "2022.05.21"]
[EventType "swiss"]
[EventCountry "UAE"]
[SourceTitle "playchess.com"]
[Source "ChessBase"]
[SourceQuality "1"]
[TimeControl "5400+30"]

{[%evp 17,56,-16,0,-17,-25,-11,-13,-10,-37,-27,-26,-25,-37,-12,-7,-16,0,-37,-24,-64,-32,-150,-175,-133,-179,-182,-169,-235,-228,-217,-205,-203,-206,-443,-440,-828,-820,-1106,-1108,-1260,-1141]} 1. e4 {[%emt 0:00:03]} c5 {[%emt 0:00:04]} 2. Nf3 {[%emt 0:00:08]} d6 {[%emt 0:00:05]} 3. d4 {[%emt 0:00:10]} cxd4 {[%emt 0:00:05]} 4. Nxd4 {[%emt 0:00:06]} Nf6 {[%emt 0:00:05]} 5. Nc3 {[%emt 0:00:16]} a6 {[%emt 0:00:03]} 6. Bg5 {[%emt 0:00:17]} e6 {[%emt 0:00:06]} 7. Qf3 {[%emt 0:00:33]} h6 {[%emt 0:00:28]} 8. Bh4 {[%emt 0:00:16]} Nbd7 {[%emt 0:00:18]} 9. O-O-O {[%emt 0:01:01]} Qc7 {[%emt 0:00:56]} 10. Bd3 {[%emt 0:00:51] B95: Sicilian Najdorf: 6 Bg5 e6, unusual White 7th moves.} Be7 {[%emt 0:00:06]} 11. Kb1 {[%emt 0:01:02]} Rb8 {[%emt 0:00:18] [#]} 12. Qh3 $146 {[%emt 0:01:06] The position is equal.} ({Predecessor:} 12. Qe2 b5 13. f4 Bb7 14. Rhf1 Qa5 15. e5 {1-0 (15) Hervet,G (2366)-Raijmaekers,R (2497) ICCF email 2015}) 12... b5 {[%emt 0:00:11][%cal Bb7b5,Bb5b4][%mdl 32]} 13. f4 {[%emt 0:00:31][%cal Oe4e5] Threatens to win with e5!} b4 $1 {[%emt 0:00:05]} 14. Na4 {[%emt 0:00:48][%cal Oe4e5]} Nc5 {[%emt 0:00:07][%cal Bd7c5,Bc5a4,Ba4c3][%mdl 32]} 15. e5 {[%emt 0:00:40]} Nxa4 {[%emt 0:00:08]} 16. exf6 {[%emt 0:00:13]} gxf6 {[%emt 0:00:09]} 17. g4 {[%emt 0:01:02]} h5 {[%emt 0:01:13]} (17... Nxb2 $2 18. Kxb2 h5 19. Be1 $16) 18. Be1 {[%emt 0:02:19]} Bd7 {[%emt 0:09:54]} 19. b3 {[%emt 1:00:33]} ({Of course not} 19. Bxa6 e5 20. Nf5 Qc6 $17) (19. f5 $15) 19... Nc3+ $17 {[%emt 0:03:16]} 20. Bxc3 {[%emt 0:00:20]} bxc3 {[%emt 0:07:54]} ({And not} 20... Qxc3 21. Ne2 Qc5 22. f5 $15) 21. Rhe1 {[%emt 0:02:03]} Qa5 {[%emt 0:11:38] ( -> ...Qa3)} 22. Bf1 {[%emt 0:13:11] [#]} (22. Bf5 $142) 22... Rc8 $1 $19 {[%emt 0:04:23] aiming for ...Qa3.} 23. Re3 {[%emt 0:00:55]} d5 {[%emt 0:03:54][%cal Oe6e5]} 24. Ne2 {[%emt 0:00:42]} Bb4 {[%emt 0:07:39]} 25. f5 $2 {[%emt 0:07:30] [#]} (25. g5 fxg5 26. fxg5) 25... e5 $1 {[%emt 0:01:26] Black is clearly winning.} 26. a3 {[%emt 0:05:12]} (26. Qh4 $142 Be7 27. Qh3) 26... Qxa3 {[%emt 0:09:47][%csl Gc3][%cal Ra3b2]} 27. Nxc3 {[%emt 0:00:53]} Rc5 {[%emt 0:06:35]} 28. Bb5 {[%emt 0:01:12]} Bxc3 {[%emt 0:01:56] Weighted Error Value: White=0.69/Black=0.01 (flawless)} 0-1

[Event "5th Sharjah Masters 2022"]
[Site "Sharjah"]
[Date "2022.05.25"]
[Round "5.17"]
[White "Muradli, Mahammad"]
[Black "Yakubboev, Nodirbek"]
[Result "1-0"]
[ECO "D85"]
[WhiteElo "2539"]
[BlackElo "2630"]
[Annotator "TA"]
[PlyCount "69"]
[EventDate "2022.05.21"]
[EventType "swiss"]
[EventCountry "UAE"]
[SourceTitle "playchess.com"]
[Source "ChessBase"]
[SourceQuality "1"]
[TimeControl "5400+30"]

{[%evp 19,69,8,0,0,12,24,38,25,57,43,116,101,109,123,95,121,95,72,109,53,125,116,208,172,193,168,477,360,360,360,360,360,360,360,308,77,360,360,358,358,745,743,742,735,1746,1216,29984,29985,29985,29986,29981,29982]} 1. d4 {[%emt 0:01:30]} Nf6 {[%emt 0:01:45]} 2. c4 {[%emt 0:00:07]} g6 {[%emt 0:00:17]} 3. Nc3 {[%emt 0:00:07]} d5 {[%emt 0:00:04]} 4. cxd5 {[%emt 0:00:10]} Nxd5 {[%emt 0:00:05]} 5. e4 {[%emt 0:00:08]} Nxc3 {[%emt 0:00:03]} 6. bxc3 {[%emt 0:00:08]} Bg7 {[%emt 0:00:05]} 7. Nf3 {[%emt 0:00:13]} c5 {[%emt 0:00:18]} 8. Bb5+ {[%emt 0:00:05]} Nc6 {[%emt 0:00:48]} 9. O-O {[%emt 0:00:16]} O-O {[%emt 0:01:14]} 10. Bxc6 $1 {[%emt 0:00:20][%mdl 4] is now more promising than 10.Be3.} bxc6 {[%emt 0:00:01]} 11. Qc2 {[%emt 0:00:11] D85: Exchange Grünfeld: Unusual White 7th moves and lines with 7 Nf3.} Ba6 {[%emt 0:08:16]} 12. Rd1 {[%emt 0:02:29]} cxd4 {[%emt 0:04:29]} 13. cxd4 {[%emt 0:00:18] White is slightly better.} c5 {[%emt 0:01:31]} 14. dxc5 {[%emt 0:11:58]} Bxa1 {[%emt 0:03:30] [#]} ({Black should try} 14... Qa5 $14) 15. Rxd8 $146 {[%emt 0:00:15]} ({Predecessor:} 15. Bh6 Bh8 16. Rxd8 Rfxd8 17. h4 Bd3 18. Qa4 a6 19. Bg5 Rac8 20. Bxe7 Re8 21. Bd6 Bxe4 22. Qxa6 {½-½ (40) Nihal,S (2652)-Navara,D (2691) Riga 2021}) 15... Rfxd8 {[%emt 0:00:26]} 16. h4 {[%emt 0:00:45]} Bd3 {[%emt 0:21:39]} 17. Qa4 {[%emt 0:00:35]} a6 {[%emt 0:03:46]} 18. Be3 {[%emt 0:12:10]} Rac8 {[%emt 0:13:03]} 19. h5 {[%emt 0:07:17]} (19. e5 $16) 19... Be2 {[%emt 0:04:51]} (19... Bb5 $1 $14 20. Qb4 Bc6) 20. h6 {[%emt 0:06:26]} Bb5 {[%emt 0:04:52]} (20... Bh8 $16) 21. Qb3 {[%emt 0:05:04]} Rd3 {[%emt 0:10:34]} 22. Qc2 {[%emt 0:03:51] a4 is the strong threat.} Ra3 {[%emt 0:01:53] Against a4} (22... Rdd8 {is a better chance.} 23. a4 Bc6) 23. Qc1 {[%emt 0:14:50]} Rxa2 {[%emt 0:00:36] [#]} 24. Bd4 $1 {[%emt 0:00:08]} Bxd4 {[%emt 0:02:32]} 25. Nxd4 {[%emt 0:00:04]} Ra4 {[%emt 0:03:29]} 26. Qb2 {[%emt 0:15:22]} f6 {[%emt 0:00:25] [#]} 27. e5 $2 {[%emt 0:00:20]} (27. c6 $1 $18) 27... Kf7 $2 {[%emt 0:08:54][%mdl 8192] Black cannot hold the game after this.} (27... Rxc5 $16 {is a better defense.} 28. exf6 exf6) 28. Qb3+ $18 {[%emt 0:06:13]} ({Less strong is} 28. Nxb5 axb5 29. exf6 Rxc5 $16) 28... Rc4 {[%emt 0:00:23]} 29. c6 {[%emt 0:00:31]} ({Not} 29. Nxb5 axb5 30. exf6 R8xc5 $11) 29... f5 $2 {[%emt 0:03:56]} (29... Kf8 30. exf6 Rxd4) 30. e6+ {[%emt 0:00:41]} Kf6 {[%emt 0:00:23] [#]} 31. f4 $1 {[%emt 0:00:59] Qe3 would kill now.} g5 {[%emt 0:00:41]} (31... Rxd4 32. Qc3) 32. Nxb5 {[%emt 0:00:28] Intending Qb2+ and mate.} axb5 {[%emt 0:00:09]} 33. Qb2+ {[%emt 0:00:05] White mates.} Kxe6 {[%emt 0:00:06]} 34. Qe5+ {[%emt 0:00:03]} Kf7 {[%emt 0:00:03]} 35. Qxf5+ {[%emt 0:00:05] Weighted Error Value: White=0.36/Black=0.96} 1-0